[Event "10th IM Marmaris Karia 2019"]
[Site "Marmaris"]
[Date "2019.10.18"]
[Round "4.4"]
[White "Sevdimaliyev, Urfan"]
[Black "Gunduz, Umut Erdem"]
[Result "1-0"]
[ECO "B38"]
[WhiteElo "2361"]
[BlackElo "2165"]
[Annotator "NA"]
[PlyCount "93"]
[EventDate "2019.10.19"]
[EventType "schev"]
[EventCountry "TUR"]
[SourceTitle "playchess.com"]
[Source "ChessBase"]
[SourceQuality "1"]
[TimeControl "5400+30"]

1. c4 {[%emt 0:01:30]} c5 {[%emt 0:00:30]} 2. Nf3 {[%emt 0:00:00]} Nf6 {[%emt 0:00:30]} 3. Nc3 {[%emt 0:01:00]} Nc6 {[%emt 0:00:30]} 4. d4 {[%emt 0:01:30]} cxd4 {[%emt 0:00:30]} 5. Nxd4 {[%emt 0:00:30]} g6 {[%emt 0:00:00]} 6. e4 {[%emt 0:00:30]} d6 {[%emt 0:01:00]} 7. Be2 {[%emt 0:03:30]} Bg7 {[%emt 0:00:30]} 8. Be3 {[%emt 0:00:00]} O-O {[%emt 0:00:30]} 9. Qd2 {[%emt 0:04:00]} Ng4 {[%emt 0:00:30]} 10. Bxg4 {[%emt 0:00:30]} Bxg4 {[%emt 0:00:30]} 11. O-O {[%emt 0:06:30]} Rc8 {[%emt 0:09:30]} 12. b3 {[%emt 0:05:30]} a6 $14 {[%emt 0:14:30]} 13. f4 {[%emt 0:08:30]} Bd7 {[%emt 0:06:30]} 14. Rac1 {[%emt 0:06:30]} Nxd4 {[%emt 0:15:30]} 15. Bxd4 {[%emt 0:00:00]} Bc6 {[%emt 0:01:30]} 16. f5 {[%emt 0:15:00]} Bxd4+ {[%emt 0:02:30]} 17. Qxd4 {[%emt 0:00:30]} Qa5 {[%emt 0:00:00]} 18. f6 {[%emt 0:08:30]} exf6 {[%emt 0:05:00]} 19. Qxd6 {[%emt 0:05:30]} Rce8 {[%emt 0:09:30]} 20. Qxf6 {[%emt 0:05:30]} Bxe4 {[%emt 0:01:30]} 21. Rce1 {[%emt 0:02:30]} Re6 {[%emt 0:04:30]} 22. Qd4 {[%emt 0:00:30]} Bc6 {[%emt 0:00:30]} 23. Rxe6 {[%emt 0:00:30]} fxe6 {[%emt 0:00:30]} 24. Rxf8+ {[%emt 0:00:30]} Kxf8 {[%emt 0:00:30]} 25. Qf6+ {[%emt 0:00:30]} Ke8 {[%emt 0:00:30]} 26. Qxe6+ {[%emt 0:00:30]} Kd8 {[%emt 0:00:30]} 27. Qg8+ {[%emt 0:00:30]} Kc7 {[%emt 0:00:30]} 28. Qxh7+ {[%emt 0:00:30]} Kb6 {[%emt 0:00:30]} 29. Qh3 {[%emt 0:07:02]} Qc5+ {[%emt 0:04:30]} 30. Kf1 {[%emt 0:00:28]} Qg5 {[%emt 0:06:55]} 31. Nd1 {[%emt 0:05:38]} Qf4+ {[%emt 0:04:36]} 32. Ke2 {[%emt 0:02:04]} Kc5 {[%emt 0:01:35]} 33. Qe3+ {[%emt 0:02:31]} Qxe3+ {[%emt 0:00:03]} 34. Nxe3 {[%emt 0:00:18]} Kb4 {[%emt 0:00:17]} 35. Kd3 {[%emt 0:02:31]} Ka3 {[%emt 0:01:17]} 36. Kc3 {[%emt 0:00:57]} Kxa2 {[%emt 0:00:11]} 37. h4 {[%emt 0:01:06]} a5 {[%emt 0:01:12]} 38. c5 {[%emt 0:01:28]} Kb1 {[%emt 0:05:26]} 39. g4 {[%emt 0:03:05]} Bf3 {[%emt 0:02:23]} 40. Nc4 {[%emt 0:00:32]} a4 {[%emt 0:01:00]} 41. bxa4 {[%emt 0:00:06]} Bxg4 {[%emt 0:00:13]} 42. Ne5 {[%emt 0:00:25]} Bf5 {[%emt 0:00:38]} 43. a5 {[%emt 0:00:12]} Ka2 {[%emt 0:00:40]} 44. c6 {[%emt 0:01:09]} bxc6 {[%emt 0:00:14]} 45. a6 {[%emt 0:00:02]} c5 {[%emt 0:00:09]} 46. a7 {[%emt 0:00:32]} Be4 {[%emt 0:00:05]} 47. Nxg6 {[%emt 0:00:35]} 1-0

[Event "10th IM Marmaris Karia 2019"]
[Site "Marmaris"]
[Date "2019.10.18"]
[Round "4.5"]
[White "Guseynov, Alihan"]
[Black "Angun, Batu"]
[Result "0-1"]
[ECO "B90"]
[WhiteElo "2335"]
[BlackElo "2165"]
[Annotator "NA"]
[PlyCount "82"]
[EventDate "2019.10.19"]
[EventType "schev"]
[EventCountry "TUR"]
[SourceTitle "playchess.com"]
[Source "ChessBase"]
[SourceQuality "1"]
[TimeControl "5400+30"]

1. e4 {[%emt 0:00:30]} c5 {[%emt 0:02:30]} 2. Nf3 {[%emt 0:00:30]} d6 {[%emt 0:00:00]} 3. d4 {[%emt 0:00:00]} cxd4 {[%emt 0:00:00]} 4. Nxd4 {[%emt 0:00:00]} Nf6 {[%emt 0:00:30]} 5. Nc3 {[%emt 0:00:30]} a6 {[%emt 0:00:00]} 6. Be3 {[%emt 0:00:30]} e5 {[%emt 0:00:00]} 7. Nb3 {[%emt 0:00:30]} Be7 {[%emt 0:02:30]} ({Predecessor:} 7... Be6 8. f3 d5 9. exd5 Nxd5 10. Nxd5 Qxd5 11. Qxd5 Bxd5 12. O-O-O Be6 13. Nc5 {½-½ (54) Tangatarov,T (2184)-Glidzhain,G (2354) Ufa 2012}) 8. f3 {[%emt 0:00:30]} Be6 {[%emt 0:00:30]} 9. Qd2 {[%emt 0:00:30]} d5 {[%emt 0:03:30]} 10. exd5 {[%emt 0:02:30] B90: Sicilian Najdorf: Unusual White 6th moves, 6 Be3 Ng4 and 6 Be3 e5} Nxd5 {[%emt 0:00:30]} 11. Nxd5 {[%emt 0:01:30]} Qxd5 {[%emt 0:00:30]} 12. Qxd5 {[%emt 0:00:30]} Bxd5 {[%emt 0:00:30]} 13. O-O-O {[%emt 0:00:30]} Be6 {[%emt 0:00:30]} 14. Nc5 $146 {[%emt 0:00:30]} (14. Na5 b5 15. Bd3 f5 16. Rhe1 Nd7 17. Nc6 Rc8 18. Nxe7 Kxe7 {½-½ (47) Shirov,A (2710)-Ljubojevic,L (2580) Linares 1995}) 14... Bxc5 {[%emt 0:00:30]} 15. Bxc5 {[%emt 0:00:30]} Nd7 {[%emt 0:00:30]} 16. Bd6 {[%emt 0:00:30]} Rc8 {[%emt 0:00:30]} 17. b3 {[%emt 0:05:30]} f6 {[%emt 0:01:30]} 18. Bd3 {[%emt 0:00:30]} Nc5 {[%emt 0:00:30]} 19. Bxc5 {[%emt 0:07:30]} Rxc5 {[%emt 0:00:00]} 20. Be4 {[%emt 0:00:00]} Rc7 {[%emt 0:00:00]} 21. Rd6 {[%emt 0:00:00]} Ke7 {[%emt 0:00:30]} 22. Rb6 $1 {[%emt 0:00:30]} Bc8 {[%emt 0:00:30]} 23. c4 {[%emt 0:02:30]} f5 {[%emt 0:00:30]} 24. Bc2 {[%emt 0:02:30]} Rc6 {[%emt 0:00:30]} 25. Rxc6 {[%emt 0:00:30]} bxc6 {[%emt 0:00:30]} 26. Kb2 {[%emt 0:00:30]} Rd8 {[%emt 0:00:30]} 27. Kc3 {[%emt 0:00:30]} c5 {[%emt 0:00:30]} 28. a3 {[%emt 0:01:30]} a5 {[%emt 0:00:30]} 29. h4 {[%emt 0:02:30]} Rd4 $11 {[%emt 0:00:30]} 30. g3 {[%emt 0:04:30]} Be6 {[%emt 0:04:30]} 31. h5 {[%emt 0:03:30]} h6 {[%emt 0:04:30]} 32. Bd3 {[%emt 0:02:30]} Kf6 {[%emt 0:02:30]} 33. Rb1 {[%emt 0:02:30]} f4 {[%emt 0:08:30]} 34. Rg1 {[%emt 0:12:30]} Bf5 {[%emt 0:02:30]} 35. Be2 {[%emt 0:02:30]} e4 {[%emt 0:00:30]} 36. b4 {[%emt 0:05:30]} axb4+ {[%emt 0:00:30]} 37. axb4 {[%emt 0:00:00]} exf3 {[%emt 0:00:30]} 38. bxc5 {[%emt 0:00:00]} Re4 {[%emt 0:00:30]} 39. Bf1 {[%emt 0:01:30]} Re1 {[%emt 0:00:30]} 40. gxf4 {[%emt 0:01:30]} f2 {[%emt 0:01:30]} 41. Rh1 {[%emt 0:00:30]} Be4 {[%emt 0:00:00]} 0-1

[Event "10th IM Marmaris Karia 2019"]
[Site "Marmaris"]
[Date "2019.10.19"]
[Round "5.2"]
[White "Sahin, Ozgun"]
[Black "Rasulov, Vugar"]
[Result "1/2-1/2"]
[ECO "C05"]
[WhiteElo "2224"]
[BlackElo "2506"]
[Annotator "RC"]
[PlyCount "93"]
[EventDate "2019.10.19"]
[EventType "schev"]
[EventCountry "TUR"]
[SourceTitle "playchess.com"]
[Source "ChessBase"]
[SourceQuality "1"]
[TimeControl "5400+30"]

1. e4 {[%emt 0:00:30]} e6 {[%emt 0:02:30]} 2. d4 {[%emt 0:00:00]} d5 {[%emt 0:00:30]} 3. Nc3 {[%emt 0:00:00]} Nf6 {[%emt 0:01:30]} 4. e5 {[%emt 0:00:30]} Nfd7 {[%emt 0:00:00]} 5. f4 {[%emt 0:00:00]} c5 {[%emt 0:00:00]} 6. Nf3 {[%emt 0:00:00]} Nc6 {[%emt 0:00:30]} 7. Ne2 {[%emt 0:00:30]} b5 {[%emt 0:00:30]} 8. g3 {[%emt 0:00:30]} b4 {[%emt 0:00:30]} 9. Bg2 {[%emt 0:03:30]} a5 {[%emt 0:03:30]} 10. O-O {[%emt 0:00:30]} g6 {[%emt 0:00:30]} 11. c4 {[%emt 0:03:30]} Nb6 {[%emt 0:01:30]} 12. cxd5 {[%emt 0:06:30]} Nxd5 {[%emt 0:00:00]} 13. f5 {[%emt 0:07:30]} gxf5 {[%emt 0:04:00]} 14. Nf4 {[%emt 0:00:30]} Bb7 {[%emt 0:02:30]} 15. Qa4 {[%emt 0:11:30]} Nxf4 {[%emt 0:10:30]} 16. Bxf4 {[%emt 0:00:30]} Qd7 {[%emt 0:00:30]} 17. Nd2 {[%emt 0:09:30]} Nd8 {[%emt 0:05:30]} 18. Qxd7+ {[%emt 0:02:30]} Kxd7 {[%emt 0:00:30]} 19. Nc4 {[%emt 0:01:30]} Bxg2 {[%emt 0:00:00]} 20. Kxg2 {[%emt 0:00:30]} Kc6 {[%emt 0:00:00]} 21. Rac1 {[%emt 0:00:30]} Nb7 {[%emt 0:00:00]} 22. Rfd1 {[%emt 0:05:30]} Rd8 {[%emt 0:02:00]} 23. Nd6 {[%emt 0:05:30]} Nxd6 {[%emt 0:00:30]} 24. Rxc5+ {[%emt 0:00:30]} Kb6 {[%emt 0:00:00]} 25. exd6 {[%emt 0:00:30]} Bxd6 {[%emt 0:00:00]} 26. Bxd6 {[%emt 0:00:30]} Rxd6 {[%emt 0:00:30]} 27. Rdc1 {[%emt 0:00:00]} Rhd8 {[%emt 0:00:30]} 28. a4 {[%emt 0:00:00]} bxa3 {[%emt 0:00:30]} 29. bxa3 {[%emt 0:00:30]} Ka6 {[%emt 0:01:30]} 30. a4 {[%emt 0:23:14]} R8d7 {[%emt 0:04:30]} 31. d5 {[%emt 0:00:29]} Rxd5 {[%emt 0:01:30]} 32. Rxd5 {[%emt 0:00:45]} Rxd5 {[%emt 0:00:30]} 33. Rc7 {[%emt 0:00:30]} Rd4 {[%emt 0:00:30]} 34. Rxf7 {[%emt 0:00:30]} Rxa4 {[%emt 0:00:30]} 35. Rxh7 {[%emt 0:00:00]} Rb4 {[%emt 0:00:30]} 36. Re7 {[%emt 0:00:18]} Rb6 {[%emt 0:00:30]} 37. h4 {[%emt 0:00:21]} a4 {[%emt 0:00:00]} 38. Re8 {[%emt 0:01:11]} Kb5 {[%emt 0:00:00]} 39. h5 {[%emt 0:00:45]} a3 {[%emt 0:00:30]} 40. h6 {[%emt 0:00:16]} Rb7 {[%emt 0:03:30]} 41. Rxe6 {[%emt 0:04:47]} Ra7 {[%emt 0:09:30]} 42. Re1 {[%emt 0:06:35]} Rh7 {[%emt 0:03:30]} 43. Re5+ {[%emt 0:00:10]} Kb4 {[%emt 0:00:30]} 44. Rxf5 {[%emt 0:00:02]} Rxh6 {[%emt 0:00:30]} 45. Rf4+ {[%emt 0:02:28]} Kb5 {[%emt 0:00:30]} 46. Rf5+ {[%emt 0:00:03]} Kc4 {[%emt 0:01:30]} 47. Rf4+ {[%emt 0:00:04]} 1/2-1/2

[Event "10th IM Marmaris Karia 2019"]
[Site "Marmaris"]
[Date "2019.10.19"]
[Round "6.1"]
[White "Rasulov, Vugar"]
[Black "Kiremitciyan, Ari"]
[Result "1-0"]
[ECO "C65"]
[WhiteElo "2506"]
[BlackElo "2286"]
[Annotator "ChessBase"]
[PlyCount "81"]
[EventDate "2019.10.19"]
[EventType "schev"]
[EventCountry "TUR"]
[SourceTitle "playchess.com"]
[Source "ChessBase"]
[SourceQuality "1"]
[TimeControl "5400+30"]

1. e4 {[%emt 0:00:30]} e5 {[%emt 0:00:30]} 2. Nf3 {[%emt 0:00:00]} Nc6 {[%emt 0:00:00]} 3. Bb5 {[%emt 0:00:00]} Nf6 {[%emt 0:00:00]} 4. d3 {[%emt 0:00:30]} Bc5 {[%emt 0:00:00]} 5. c3 {[%emt 0:00:00]} O-O {[%emt 0:00:00]} 6. O-O {[%emt 0:00:00]} d6 {[%emt 0:00:00]} 7. Nbd2 {[%emt 0:00:00]} a6 {[%emt 0:00:00]} 8. Ba4 {[%emt 0:00:00]} Ba7 {[%emt 0:00:30]} 9. h3 {[%emt 0:00:30]} Ne7 {[%emt 0:00:30]} 10. Re1 {[%emt 0:00:30]} Ng6 {[%emt 0:00:30]} 11. Nf1 {[%emt 0:00:00]} c6 {[%emt 0:04:30]} 12. Ng3 {[%emt 0:02:00]} Re8 {[%emt 0:01:30]} 13. d4 {[%emt 0:00:30]} b5 {[%emt 0:02:30]} 14. Bc2 {[%emt 0:00:30]} h6 {[%emt 0:04:30]} 15. Be3 {[%emt 0:03:30]} c5 {[%emt 0:09:30]} 16. Qd2 {[%emt 0:00:30]} Bb7 {[%emt 0:16:30]} 17. d5 {[%emt 0:09:30]} c4 {[%emt 0:00:30]} 18. Bxa7 {[%emt 0:03:30]} Rxa7 {[%emt 0:00:30]} 19. a4 {[%emt 0:00:30]} Ra8 {[%emt 0:02:30]} 20. Ra3 {[%emt 0:00:30]} Nf4 {[%emt 0:03:30]} 21. Rea1 {[%emt 0:00:30]} Qb6 {[%emt 0:00:30]} 22. Qe3 {[%emt 0:00:30]} Qc7 {[%emt 0:02:30]} 23. Nf5 {[%emt 0:05:30]} Nd7 {[%emt 0:03:30]} 24. N3h4 {[%emt 0:04:30]} Nf8 {[%emt 0:18:30]} 25. g3 {[%emt 0:01:30]} Nxh3+ {[%emt 0:04:30]} 26. Kg2 {[%emt 0:00:30]} Ng5 {[%emt 0:00:00]} 27. Nxg7 {[%emt 0:02:30]} Kxg7 {[%emt 0:01:00]} 28. Nf5+ {[%emt 0:00:30]} Kf6 {[%emt 0:00:30]} 29. f4 {[%emt 0:00:30]} exf4 {[%emt 0:00:30]} 30. Qd4+ {[%emt 0:00:30]} Re5 {[%emt 0:00:30]} 31. gxf4 {[%emt 0:00:00]} Ng6 {[%emt 0:01:30]} 32. fxe5+ {[%emt 0:01:00]} dxe5 {[%emt 0:00:00]} 33. Qf2 {[%emt 0:00:30]} Nf4+ {[%emt 0:00:00]} 34. Kh1 {[%emt 0:00:30]} Bc8 {[%emt 0:00:30]} 35. axb5 {[%emt 0:00:30]} Bxf5 {[%emt 0:00:00]} 36. Rxa6+ {[%emt 0:00:00]} Rxa6 {[%emt 0:00:00]} 37. Rxa6+ {[%emt 0:00:00]} Kg7 {[%emt 0:00:30]} 38. exf5 {[%emt 0:00:30]} Qb7 {[%emt 0:03:30]} 39. f6+ {[%emt 0:00:00]} Kg8 {[%emt 0:00:00]} 40. Rd6 {[%emt 0:00:00]} Qa8 {[%emt 0:04:00]} 41. Qa7 {[%emt 0:00:30]} 1-0

[Event "10th IM Marmaris Karia 2019"]
[Site "Marmaris"]
[Date "2019.10.19"]
[Round "6.3"]
[White "Guseynov, Alihan"]
[Black "Citak, Selim"]
[Result "1-0"]
[ECO "A13"]
[WhiteElo "2335"]
[BlackElo "2210"]
[Annotator "NA"]
[PlyCount "84"]
[EventDate "2019.10.19"]
[EventType "schev"]
[EventCountry "TUR"]
[SourceTitle "playchess.com"]
[Source "ChessBase"]
[SourceQuality "1"]
[TimeControl "5400+30"]

1. c4 {[%emt 0:00:30]} e6 {[%emt 0:01:30]} 2. Nf3 {[%emt 0:00:30]} d5 {[%emt 0:00:30]} 3. e3 {[%emt 0:00:00]} Nf6 {[%emt 0:00:30]} 4. b3 {[%emt 0:01:00]} c5 {[%emt 0:01:30]} 5. Bb2 {[%emt 0:00:30]} Nc6 {[%emt 0:00:30]} 6. cxd5 {[%emt 0:00:30]} exd5 {[%emt 0:00:30]} 7. Bb5 {[%emt 0:02:30]} Be7 {[%emt 0:03:30]} 8. O-O {[%emt 0:01:30]} O-O {[%emt 0:02:30]} 9. d4 {[%emt 0:00:30]} Bg4 {[%emt 0:03:30]} 10. dxc5 {[%emt 0:05:30]} Bxc5 {[%emt 0:00:30]} 11. h3 {[%emt 0:03:30]} Bh5 {[%emt 0:02:30]} 12. Nc3 {[%emt 0:02:30]} a6 {[%emt 0:12:30]} 13. Be2 {[%emt 0:03:30]} Rc8 {[%emt 0:01:30]} 14. Rc1 {[%emt 0:03:30]} Ba7 {[%emt 0:01:30]} 15. Nd4 {[%emt 0:00:30]} Bxe2 {[%emt 0:12:30]} 16. Ncxe2 {[%emt 0:02:30]} Nxd4 {[%emt 0:03:30]} 17. Nxd4 {[%emt 0:01:30]} Rxc1 {[%emt 0:00:30]} 18. Qxc1 {[%emt 0:00:30]} Qd7 {[%emt 0:00:30]} 19. Nf3 {[%emt 0:06:30]} Rc8 {[%emt 0:04:30]} 20. Qa1 {[%emt 0:01:30]} Ne8 {[%emt 0:00:30]} 21. Rd1 {[%emt 0:05:30]} Qf5 {[%emt 0:00:30]} 22. Rd2 {[%emt 0:03:30]} Bb6 {[%emt 0:04:30]} 23. Qd1 {[%emt 0:02:30]} Rd8 {[%emt 0:00:30]} 24. Nd4 {[%emt 0:11:30]} Qe4 {[%emt 0:05:30]} 25. Ne2 {[%emt 0:03:30]} Nc7 {[%emt 0:00:00]} 26. Nf4 {[%emt 0:01:30]} h6 {[%emt 0:02:00]} 27. Nh5 {[%emt 0:04:30]} d4 {[%emt 0:05:30]} 28. Ng3 {[%emt 0:02:30]} Qd5 {[%emt 0:00:30]} 29. Bxd4 {[%emt 0:02:30]} Nb5 {[%emt 0:00:30]} 30. Nf5 {[%emt 0:06:30]} Qxf5 {[%emt 0:05:30]} 31. Bxb6 {[%emt 0:00:00]} Rxd2 {[%emt 0:00:30]} 32. Qxd2 {[%emt 0:00:00]} Qb1+ {[%emt 0:01:30]} 33. Kh2 {[%emt 0:00:00]} Na3 {[%emt 0:00:30]} 34. Bc5 {[%emt 0:03:00]} Nc2 {[%emt 0:00:30]} 35. Qd8+ {[%emt 0:01:30]} Kh7 {[%emt 0:01:30]} 36. Qd3+ {[%emt 0:00:30]} Kg8 {[%emt 0:00:00]} 37. Qe4 {[%emt 0:01:53]} f6 {[%emt 0:01:00]} 38. Qe6+ {[%emt 0:03:33]} Kh7 {[%emt 0:00:30]} 39. Qf5+ {[%emt 0:00:13]} Kg8 {[%emt 0:00:30]} 40. Qc8+ {[%emt 0:00:21]} Kh7 {[%emt 0:00:00]} 41. Qxb7 {[%emt 0:00:31]} Ne1 {[%emt 0:00:00]} 42. Bb4 {[%emt 0:00:47]} Nd3 {[%emt 0:00:30]} 1-0

[Event "10th IM Marmaris Karia 2019"]
[Site "Marmaris"]
[Date "2019.10.19"]
[Round "6.4"]
[White "Semiev, Suhrab"]
[Black "Gunduz, Umut Erdem"]
[Result "0-1"]
[ECO "B14"]
[WhiteElo "2290"]
[BlackElo "2165"]
[Annotator "NA"]
[PlyCount "56"]
[EventDate "2019.10.19"]
[EventType "schev"]
[EventCountry "TUR"]
[SourceTitle "playchess.com"]
[Source "ChessBase"]
[SourceQuality "1"]
[TimeControl "5400+30"]

1. c4 {[%emt 0:00:30]} c5 {[%emt 0:00:30]} 2. Nc3 {[%emt 0:00:00]} Nc6 {[%emt 0:00:30]} 3. e3 {[%emt 0:01:00]} Nf6 {[%emt 0:00:30]} 4. d4 {[%emt 0:00:30]} cxd4 {[%emt 0:00:00]} 5. exd4 {[%emt 0:00:30]} d5 {[%emt 0:00:00]} 6. Nf3 {[%emt 0:00:30]} g6 {[%emt 0:01:30]} 7. c5 {[%emt 0:02:30]} Bg7 {[%emt 0:00:30]} 8. Bb5 {[%emt 0:00:30]} O-O {[%emt 0:00:30]} 9. O-O {[%emt 0:00:30]} Bg4 {[%emt 0:01:30]} 10. Be2 {[%emt 0:08:30]} e6 {[%emt 0:19:30]} 11. Ne1 {[%emt 0:14:30]} Bxe2 {[%emt 0:01:30]} 12. Nxe2 {[%emt 0:00:00]} b6 {[%emt 0:00:30]} 13. Qa4 {[%emt 0:05:00]} Rc8 {[%emt 0:07:30]} 14. b4 {[%emt 0:13:30]} Ne4 {[%emt 0:01:30]} 15. Nc2 {[%emt 0:00:30]} bxc5 {[%emt 0:04:30]} 16. bxc5 {[%emt 0:00:30]} e5 {[%emt 0:06:30]} 17. Be3 {[%emt 0:11:30]} exd4 {[%emt 0:04:30]} 18. Nexd4 {[%emt 0:01:30]} Nxc5 {[%emt 0:05:30]} 19. Qa3 {[%emt 0:02:30]} Ne4 {[%emt 0:07:30]} 20. Nxc6 {[%emt 0:07:30]} Rxc6 {[%emt 0:00:30]} 21. Nd4 {[%emt 0:00:00]} Rc4 {[%emt 0:00:30]} 22. Rad1 {[%emt 0:00:00]} Nc3 {[%emt 0:03:30]} 23. Rd2 {[%emt 0:02:30]} Qc7 {[%emt 0:01:30]} 24. Kh1 {[%emt 0:01:30]} Rb8 {[%emt 0:04:30]} 25. Nb3 {[%emt 0:03:30]} d4 {[%emt 0:00:30]} 26. Nxd4 {[%emt 0:02:30]} Nb1 {[%emt 0:01:30]} 27. Qd3 {[%emt 0:07:43]} Nxd2 {[%emt 0:00:00]} 28. Qxd2 {[%emt 0:00:01]} Bxd4 {[%emt 0:00:00]} 0-1

[Event "10th IM Marmaris Karia 2019"]
[Site "Marmaris"]
[Date "2019.10.19"]
[Round "8.5"]
[White "Sevdimaliyev, Urfan"]
[Black "Angun, Batu"]
[Result "1/2-1/2"]
[ECO "D03"]
[WhiteElo "2361"]
[BlackElo "2165"]
[Annotator "RC"]
[PlyCount "23"]
[EventDate "2019.10.19"]
[EventType "schev"]
[EventCountry "TUR"]
[SourceTitle "playchess.com"]
[Source "ChessBase"]
[SourceQuality "1"]
[TimeControl "5400+30"]

1. d4 {[%emt 0:00:30]} Nf6 {[%emt 0:00:30]} 2. Nf3 {[%emt 0:00:30]} g6 {[%emt 0:00:00]} 3. Bg5 {[%emt 0:00:00]} Bg7 {[%emt 0:00:00]} 4. Nbd2 {[%emt 0:00:00]} d5 {[%emt 0:00:00]} 5. e3 {[%emt 0:00:00]} O-O {[%emt 0:00:00]} 6. Bd3 {[%emt 0:00:00]} c5 {[%emt 0:00:30]} 7. c3 {[%emt 0:00:30]} Nc6 {[%emt 0:00:30]} 8. O-O {[%emt 0:00:00]} Qc7 {[%emt 0:01:30]} 9. Bf4 {[%emt 0:00:00]} Qd8 {[%emt 0:00:00]} 10. Bg5 {[%emt 0:00:30]} Qc7 {[%emt 0:00:00]} 11. Bf4 {[%emt 0:00:00]} Qd8 {[%emt 0:00:00]} 12. Bg5 {[%emt 0:00:00]} 1/2-1/2

[Event "10th IM Marmaris Karia 2019"]
[Site "Marmaris"]
[Date "2019.10.23"]
[Round "10.5"]
[White "Semiev, Suhrab"]
[Black "Angun, Batu"]
[Result "1/2-1/2"]
[ECO "B52"]
[WhiteElo "2290"]
[BlackElo "2165"]
[Annotator "ChessBase"]
[PlyCount "64"]
[EventDate "2019.10.19"]
[EventType "schev"]
[EventCountry "TUR"]
[SourceTitle "playchess.com"]
[Source "ChessBase"]
[SourceQuality "1"]
[TimeControl "5400+30"]

1. e4 {[%emt 0:00:30]} c5 {[%emt 0:00:30]} 2. Nf3 {[%emt 0:00:30]} d6 {[%emt 0:00:30]} 3. Bb5+ {[%emt 0:00:00]} Bd7 {[%emt 0:00:00]} 4. Bxd7+ {[%emt 0:00:00]} Nxd7 {[%emt 0:00:00]} 5. O-O {[%emt 0:00:30]} Ngf6 {[%emt 0:00:30]} 6. Re1 {[%emt 0:00:30]} g6 {[%emt 0:00:00]} 7. c3 {[%emt 0:00:30]} Bg7 {[%emt 0:02:00]} 8. d4 {[%emt 0:00:00]} cxd4 {[%emt 0:00:00]} 9. cxd4 {[%emt 0:00:00]} O-O {[%emt 0:00:00]} 10. Nc3 {[%emt 0:00:30]} Nb6 {[%emt 0:00:00]} 11. b3 {[%emt 0:00:30]} Rc8 {[%emt 0:01:00]} 12. Bb2 {[%emt 0:00:30]} Qd7 {[%emt 0:00:30]} 13. h3 {[%emt 0:00:30]} Rc7 {[%emt 0:01:30]} 14. e5 {[%emt 0:00:30]} Nfd5 {[%emt 0:00:00]} 15. Ne4 {[%emt 0:01:30]} Rfc8 {[%emt 0:00:00]} 16. Rc1 {[%emt 0:01:30]} Rxc1 {[%emt 0:01:30]} 17. Bxc1 {[%emt 0:00:00]} dxe5 {[%emt 0:01:30]} 18. Nxe5 {[%emt 0:02:00]} Qc7 {[%emt 0:01:30]} 19. Nc5 {[%emt 0:04:30]} e6 {[%emt 0:01:30]} 20. Ba3 {[%emt 0:01:30]} Rd8 {[%emt 0:00:30]} 21. Qf3 {[%emt 0:00:30]} Nc8 {[%emt 0:01:30]} 22. Rc1 {[%emt 0:02:30]} Bxe5 {[%emt 0:01:30]} 23. dxe5 {[%emt 0:04:30]} Qxe5 {[%emt 0:00:00]} 24. Nxb7 {[%emt 0:00:30]} Re8 {[%emt 0:00:00]} 25. Nc5 {[%emt 0:00:30]} Nce7 {[%emt 0:04:30]} 26. Nd3 {[%emt 0:01:30]} Qf5 {[%emt 0:00:00]} 27. Qxf5 {[%emt 0:00:00]} Nxf5 {[%emt 0:00:00]} 28. Ne5 {[%emt 0:00:00]} Nd4 {[%emt 0:00:30]} 29. Kf1 {[%emt 0:00:30]} Nb5 {[%emt 0:00:00]} 30. Bb2 {[%emt 0:00:30]} Nd6 {[%emt 0:00:00]} 31. Ba3 {[%emt 0:00:30]} Nb5 {[%emt 0:00:00]} 32. Bb2 {[%emt 0:00:00]} Nd6 {[%emt 0:00:00]} 1/2-1/2